[Event "Fagernes Chess GM-Swiss 2024"]
[Site "Fagernes"]
[Date "2024.03.27"]
[Round "4.36"]
[White "Skotheim, Andreas"]
[Black "Kaewpitakkun, Pantham"]
[Result "1-0"]
[ECO "B52"]
[WhiteElo "2214"]
[BlackElo "1989"]
[Annotator "RC"]
[PlyCount "79"]
[EventDate "2024.03.25"]
[EventType "swiss"]
[EventCountry "NOR"]
[SourceTitle "playchess.com"]
[Source "ChessBase"]
[SourceQuality "1"]
[TimeControl "40/6000+30:2400+30"]

1. e4 {[%emt 0:01:47]} c5 {[%emt 0:00:03]} 2. Nf3 {[%emt 0:00:51]} d6 {[%emt 0:00:03]} 3. Bb5+ {[%emt 0:00:23]} Bd7 {[%emt 0:00:07]} 4. c4 {[%emt 0:00:11]} Nf6 {[%emt 0:02:10]} 5. Nc3 {[%emt 0:00:22]} g6 {[%emt 0:02:47]} 6. Bxd7+ {[%emt 0:00:21]} Qxd7 {[%emt 0:00:09]} 7. d4 {[%emt 0:00:24]} cxd4 {[%emt 0:01:09]} 8. Qxd4 {[%emt 0:00:10]} Nc6 {[%emt 0:01:15]} 9. Qd3 {[%emt 0:00:31]} Bg7 {[%emt 0:01:01]} 10. O-O {[%emt 0:00:51]} O-O {[%emt 0:01:50]} 11. Bd2 {[%emt 0:01:31]} Rfc8 {[%emt 0:06:32]} 12. b3 {[%emt 0:04:10]} Rab8 {[%emt 0:06:22]} 13. Rac1 {[%emt 0:06:55]} a6 {[%emt 0:02:51]} 14. Nd5 {[%emt 0:05:25]} Nxd5 {[%emt 0:20:00]} 15. exd5 {[%emt 0:01:16]} Ne5 {[%emt 0:00:13]} 16. Nxe5 {[%emt 0:00:25]} Bxe5 {[%emt 0:00:11]} 17. a4 {[%emt 0:02:00]} b5 {[%emt 0:02:20]} 18. cxb5 {[%emt 0:01:11]} axb5 {[%emt 0:01:55]} 19. a5 {[%emt 0:01:05]} b4 {[%emt 0:10:07]} 20. Rxc8+ {[%emt 0:16:20]} Qxc8 {[%emt 0:00:26]} 21. Rc1 {[%emt 0:01:05]} Qd8 {[%emt 0:00:58]} 22. a6 {[%emt 0:12:50]} Qa5 {[%emt 0:01:34]} 23. Be3 {[%emt 0:06:55]} Bc3 {[%emt 0:03:01]} 24. a7 {[%emt 0:00:46]} Ra8 {[%emt 0:01:00]} 25. g3 {[%emt 0:01:53]} Rxa7 {[%emt 0:00:36]} 26. Bxa7 {[%emt 0:00:11]} Qxa7 {[%emt 0:00:07]} 27. Rc2 {[%emt 0:07:28]} h5 {[%emt 0:05:29]} 28. Qc4 {[%emt 0:03:56]} h4 {[%emt 0:19:27]} 29. gxh4 {[%emt 0:07:19]} Qd7 {[%emt 0:02:36]} 30. Re2 {[%emt 0:01:45]} Be5 {[%emt 0:03:05]} 31. Kg2 {[%emt 0:01:46]} Qb7 {[%emt 0:02:54]} 32. Ra2 {[%emt 0:08:24]} e6 {[%emt 0:03:20]} 33. Qc6 {[%emt 0:02:40]} Qe7 {[%emt 0:00:20]} 34. Ra8+ {[%emt 0:00:40]} Kh7 {[%emt 0:02:26]} 35. Qe8 {[%emt 0:01:32]} Qxh4 {[%emt 0:03:54]} 36. Qxf7+ {[%emt 0:00:55]} Kh6 {[%emt 0:00:04]} 37. Qf8+ {[%emt 0:00:55]} Kg5 {[%emt 0:02:30]} 38. Qe7+ {[%emt 0:00:33]} Bf6 {[%emt 0:00:04]} 39. Qxe6 {[%emt 0:00:13]} Kh6 {[%emt 0:00:44]} 40. Qh3 {[%emt 0:00:23]} 1-0

[Event "Fagernes Chess GM-Swiss 2024"]
[Site "Fagernes"]
[Date "2024.03.27"]
[Round "4.37"]
[White "Makka, Ioulia"]
[Black "Aniruddh Chatterjee"]
[Result "0-1"]
[ECO "B90"]
[WhiteElo "1983"]
[BlackElo "2182"]
[Annotator "RC"]
[PlyCount "106"]
[EventDate "2024.03.25"]
[EventType "swiss"]
[EventCountry "NOR"]
[SourceTitle "playchess.com"]
[Source "ChessBase"]
[SourceQuality "1"]
[TimeControl "40/6000+30:2400+30"]

1. e4 {[%emt 0:00:06]} c5 {[%emt 0:00:56]} 2. Nf3 {[%emt 0:00:17]} d6 {[%emt 0:00:22]} 3. d4 {[%emt 0:00:16]} cxd4 {[%emt 0:00:06]} 4. Nxd4 {[%emt 0:00:09]} Nf6 {[%emt 0:00:12]} 5. Nc3 {[%emt 0:00:10]} a6 {[%emt 0:00:06]} 6. h3 {[%emt 0:01:01]} e6 {[%emt 0:00:07]} 7. Be3 {[%emt 0:06:42]} b5 {[%emt 0:00:32]} 8. a3 {[%emt 0:01:37]} Bb7 {[%emt 0:00:20]} 9. f3 {[%emt 0:13:50]} Nbd7 {[%emt 0:00:28]} 10. Qd2 {[%emt 0:02:47]} Rc8 {[%emt 0:02:35]} 11. g4 {[%emt 0:26:43]} Nb6 {[%emt 0:00:14]} 12. b3 {[%emt 0:04:05]} d5 {[%emt 0:03:42]} 13. e5 {[%emt 0:04:26]} Nfd7 {[%emt 0:00:23]} 14. f4 {[%emt 0:01:26]} b4 {[%emt 0:01:33]} 15. Nb1 {[%emt 0:00:55]} bxa3 {[%emt 0:05:44]} 16. Nxa3 {[%emt 0:00:31]} Nc5 {[%emt 0:00:55]} 17. Bg2 {[%emt 0:02:39]} Ne4 {[%emt 0:03:27]} 18. Bxe4 {[%emt 0:01:00]} dxe4 {[%emt 0:00:03]} 19. c4 {[%emt 0:01:16]} Qh4+ {[%emt 0:16:47]} 20. Qf2 {[%emt 0:02:08]} Bb4+ {[%emt 0:00:06]} 21. Kf1 {[%emt 0:01:50]} Qe7 {[%emt 0:01:35]} 22. Nac2 {[%emt 0:01:12]} Bc5 {[%emt 0:02:40]} 23. Kg2 {[%emt 0:04:01]} O-O {[%emt 0:00:32]} 24. Kh2 {[%emt 0:07:49]} f6 {[%emt 0:01:39]} 25. exf6 {[%emt 0:01:13]} Rxf6 {[%emt 0:02:09]} 26. g5 {[%emt 0:02:20]} Rff8 {[%emt 0:03:53]} 27. Qg3 {[%emt 0:05:14]} Bd6 {[%emt 0:02:01]} 28. Ne2 {[%emt 0:00:36]} Nd5 {[%emt 0:00:25]} 29. Rhf1 {[%emt 0:01:41]} Rf5 {[%emt 0:12:09]} 30. Kg1 {[%emt 0:01:16]} e5 {[%emt 0:02:28]} 31. Qg4 {[%emt 0:03:12]} g6 {[%emt 0:06:38]} 32. h4 {[%emt 0:04:40]} Nxe3 {[%emt 0:04:01]} 33. Nxe3 {[%emt 0:00:02]} Bc5 {[%emt 0:00:05]} 34. Qh3 {[%emt 0:00:43]} Rcf8 {[%emt 0:00:56]} 35. Kh1 {[%emt 0:01:00]} Bxe3 {[%emt 0:01:55]} 36. Qxe3 {[%emt 0:00:04]} Qf7 {[%emt 0:00:10]} 37. Ng3 {[%emt 0:03:40]} exf4 {[%emt 0:03:27]} 38. Nxf5 {[%emt 0:00:13]} Qxf5 {[%emt 0:00:03]} 39. Qb6 {[%emt 0:00:28]} Qh3+ {[%emt 0:00:52]} 40. Kg1 {[%emt 0:00:07]} Qg3+ {[%emt 0:00:13]} 41. Kh1 {[%emt 0:40:09]} Qxh4+ {[%emt 0:40:10]} 42. Kg1 {[%emt 0:00:25]} Qxg5+ {[%emt 0:00:05]} 43. Kf2 {[%emt 0:07:27]} e3+ {[%emt 0:08:32]} 44. Ke1 {[%emt 0:00:00]} Rd8 {[%emt 0:00:00]} 45. Qe6+ {[%emt 0:00:00]} Kg7 {[%emt 0:00:00]} 46. Qh3 {[%emt 0:00:00]} f3 {[%emt 0:00:00]} 47. Rh1 {[%emt 0:00:00]} f2+ {[%emt 0:00:00]} 48. Kf1 {[%emt 0:00:00]} Bxh1 {[%emt 0:00:00]} 49. Qxh1 {[%emt 0:00:00]} e2+ {[%emt 0:00:00]} 50. Kxe2 {[%emt 0:00:00]} Qe5+ {[%emt 0:00:00]} 51. Kxf2 {[%emt 0:00:00]} Rf8+ {[%emt 0:00:00]} 52. Kg2 {[%emt 0:00:00]} Qe2+ {[%emt 0:00:00]} 53. Kg3 {[%emt 0:00:00]} Qe3+ {[%emt 0:00:00]} 0-1

[Event "Fagernes Chess GM-Swiss 2024"]
[Site "Fagernes"]
[Date "2024.03.27"]
[Round "4.38"]
[White "Skramstad, Oda Kofoed"]
[Black "Myagmarsuren, Evsuld"]
[Result "1-0"]
[ECO "D45"]
[WhiteElo "1945"]
[BlackElo "2138"]
[Annotator "RC"]
[PlyCount "117"]
[EventDate "2024.03.25"]
[EventType "swiss"]
[EventCountry "NOR"]
[SourceTitle "playchess.com"]
[Source "ChessBase"]
[SourceQuality "1"]
[TimeControl "40/6000+30:2400+30"]

1. d4 {[%emt 0:00:45]} d5 {[%emt 0:00:03]} 2. c4 {[%emt 0:00:09]} e6 {[%emt 0:00:01]} 3. Nc3 {[%emt 0:00:38]} c6 {[%emt 0:00:05]} 4. Nf3 {[%emt 0:00:45]} Nf6 {[%emt 0:00:03]} 5. e3 {[%emt 0:01:24]} Nbd7 {[%emt 0:00:07]} 6. Qc2 {[%emt 0:00:33]} Bd6 {[%emt 0:00:04]} 7. g4 {[%emt 0:00:22]} h6 {[%emt 0:00:11]} 8. Rg1 {[%emt 0:00:13]} e5 {[%emt 0:05:53]} 9. Be2 {[%emt 0:01:22]} e4 {[%emt 0:03:39]} 10. Nd2 {[%emt 0:00:10]} a6 {[%emt 0:03:32]} 11. h4 {[%emt 0:04:10]} g5 {[%emt 0:01:24]} 12. Rh1 {[%emt 0:00:54]} gxh4 {[%emt 0:00:47]} 13. Rxh4 {[%emt 0:01:21]} b5 {[%emt 0:01:10]} 14. cxd5 {[%emt 0:04:29]} cxd5 {[%emt 0:00:08]} 15. g5 {[%emt 0:06:00]} b4 {[%emt 0:08:50]} 16. Nxd5 {[%emt 0:02:30]} Nxd5 {[%emt 0:00:09]} 17. Qxe4+ {[%emt 0:00:08]} Kf8 {[%emt 0:01:35]} 18. Qxd5 {[%emt 0:04:16]} Nb6 {[%emt 0:00:03]} 19. Qg2 {[%emt 0:00:55]} Rg8 {[%emt 0:03:59]} 20. Rxh6 {[%emt 0:02:38]} Be6 {[%emt 0:00:05]} 21. Ne4 {[%emt 0:02:33]} Bd5 {[%emt 0:03:18]} 22. Bf3 {[%emt 0:01:52]} Be7 {[%emt 0:00:18]} 23. g6 {[%emt 0:04:01]} f6 {[%emt 0:08:42]} 24. Ng3 {[%emt 0:06:19]} Rc8 {[%emt 0:04:57]} 25. Nf5 {[%emt 0:01:32]} Be6 {[%emt 0:03:44]} 26. g7+ {[%emt 0:08:49]} Ke8 {[%emt 0:00:04]} 27. Bh5+ {[%emt 0:00:24]} Kd7 {[%emt 0:00:29]} 28. Nxe7 {[%emt 0:00:26]} Kxe7 {[%emt 0:00:59]} 29. Qg6 {[%emt 0:01:40]} Kd7 {[%emt 0:07:21]} 30. Bg4 {[%emt 0:05:07]} Qe7 {[%emt 0:00:25]} 31. Bxe6+ {[%emt 0:01:39]} Kxe6 {[%emt 0:02:38]} 32. Qe4+ {[%emt 0:05:34]} Kf7 {[%emt 0:01:10]} 33. Qxe7+ {[%emt 0:02:51]} Kxe7 {[%emt 0:00:06]} 34. Rg6 {[%emt 0:00:22]} Kf7 {[%emt 0:00:27]} 35. Rg3 {[%emt 0:00:43]} Rc2 {[%emt 0:03:16]} 36. b3 {[%emt 0:04:11]} Nd5 {[%emt 0:03:33]} 37. a3 {[%emt 0:01:46]} Nc3 {[%emt 0:08:17]} 38. axb4 {[%emt 0:09:48]} Ne4 {[%emt 0:02:25]} 39. Rg2 {[%emt 0:01:01]} Rxg7 {[%emt 0:02:22]} 40. Rxg7+ {[%emt 0:00:08]} Kxg7 {[%emt 0:00:07]} 41. f3 {[%emt 0:41:30]} Ng5 {[%emt 0:41:00]} 42. Kd1 {[%emt 0:01:32]} Rc3 {[%emt 0:01:37]} 43. Bd2 {[%emt 0:01:08]} Rc6 {[%emt 0:00:34]} 44. Ke2 {[%emt 0:00:32]} Rd6 {[%emt 0:01:12]} 45. Ra5 {[%emt 0:01:26]} Rb6 {[%emt 0:01:41]} 46. e4 {[%emt 0:01:08]} Ne6 {[%emt 0:00:05]} 47. Kd3 {[%emt 0:00:28]} Kf7 {[%emt 0:00:37]} 48. d5 {[%emt 0:00:45]} Nd8 {[%emt 0:00:17]} 49. Ra4 {[%emt 0:00:36]} Nb7 {[%emt 0:00:28]} 50. Be3 {[%emt 0:00:24]} Rb5 {[%emt 0:00:07]} 51. Bc5 {[%emt 0:01:10]} f5 {[%emt 0:05:06]} 52. Kc4 {[%emt 0:01:24]} Nd8 {[%emt 0:00:44]} 53. Rxa6 {[%emt 0:00:20]} Rb8 {[%emt 0:00:03]} 54. e5 {[%emt 0:00:22]} Ke8 {[%emt 0:00:15]} 55. Ra7 {[%emt 0:00:39]} Nb7 {[%emt 0:00:19]} 56. d6 {[%emt 0:00:29]} f4 {[%emt 0:00:16]} 57. e6 {[%emt 0:00:28]} Kd8 {[%emt 0:00:25]} 58. Ra1 {[%emt 0:00:45]} Rc8 {[%emt 0:00:18]} 59. Kd5 {[%emt 0:00:19]} 1-0

[Event "Fagernes Chess GM-Swiss 2024"]
[Site "Fagernes"]
[Date "2024.03.27"]
[Round "4.39"]
[White "Elsness, Fredrik Valstad"]
[Black "Southcott-Moyers, Indy"]
[Result "0-1"]
[ECO "C54"]
[WhiteElo "1873"]
[BlackElo "2120"]
[Annotator "RC"]
[PlyCount "66"]
[EventDate "2024.03.25"]
[EventType "swiss"]
[EventCountry "NOR"]
[SourceTitle "playchess.com"]
[Source "ChessBase"]
[SourceQuality "1"]
[TimeControl "40/6000+30:2400+30"]

1. e4 {[%emt 0:02:13]} e5 {[%emt 0:00:14]} 2. Nf3 {[%emt 0:00:06]} Nc6 {[%emt 0:00:02]} 3. Bc4 {[%emt 0:00:08]} Bc5 {[%emt 0:00:08]} 4. c3 {[%emt 0:00:05]} Nf6 {[%emt 0:00:06]} 5. d4 {[%emt 0:00:04]} exd4 {[%emt 0:00:06]} 6. b4 {[%emt 0:00:04]} Bb6 {[%emt 0:03:44]} 7. e5 {[%emt 0:00:09]} d5 {[%emt 0:00:11]} 8. exf6 {[%emt 0:00:06]} dxc4 {[%emt 0:00:06]} 9. Qe2+ {[%emt 0:00:05]} Be6 {[%emt 0:00:09]} 10. b5 {[%emt 0:00:08]} d3 {[%emt 0:20:24]} 11. Qe4 {[%emt 0:00:05]} Nb4 {[%emt 0:08:42]} 12. O-O {[%emt 0:00:11]} Nc2 {[%emt 0:00:24]} 13. fxg7 {[%emt 0:00:07]} Rg8 {[%emt 0:00:13]} 14. Bg5 {[%emt 0:00:07]} Qd5 {[%emt 0:03:38]} 15. Qxh7 {[%emt 0:00:05]} Kd7 {[%emt 0:00:49]} 16. Nbd2 {[%emt 0:00:07]} Bf5 {[%emt 0:07:47]} 17. Qh6 {[%emt 0:08:05]} Rae8 {[%emt 0:09:32]} 18. Rad1 {[%emt 0:04:55]} Kc8 {[%emt 0:00:23]} 19. a4 {[%emt 0:06:22]} Kb8 {[%emt 0:13:56]} 20. Bf6 {[%emt 0:02:54]} Ka8 {[%emt 0:15:14]} 21. Qh4 {[%emt 0:02:36]} Be4 {[%emt 0:01:49]} 22. Rfe1 {[%emt 0:04:00]} Nxe1 {[%emt 0:01:37]} 23. Rxe1 {[%emt 0:00:11]} Bxf3 {[%emt 0:00:17]} 24. Rxe8+ {[%emt 0:00:12]} Rxe8 {[%emt 0:00:02]} 25. Qh8 {[%emt 0:00:21]} Qe6 {[%emt 0:00:49]} 26. Nxf3 {[%emt 0:01:28]} d2 {[%emt 0:00:43]} 27. h4 {[%emt 0:02:00]} d1=Q+ {[%emt 0:00:40]} 28. Kh2 {[%emt 0:00:15]} Qdd6+ {[%emt 0:03:02]} 29. g3 {[%emt 0:00:09]} Qc8 {[%emt 0:01:52]} 30. Qh6 {[%emt 0:03:30]} Bxf2 {[%emt 0:03:20]} 31. Qg5 {[%emt 0:00:08]} Qxg3+ {[%emt 0:00:57]} 32. Qxg3 {[%emt 0:00:07]} Bxg3+ {[%emt 0:00:04]} 33. Kxg3 {[%emt 0:00:05]} Qf5 {[%emt 0:00:13]} 0-1

[Event "Fagernes Chess GM-Swiss 2024"]
[Site "Fagernes"]
[Date "2024.03.27"]
[Round "4.40"]
[White "Stai, Sondre"]
[Black "Fiskaaen, Martin Holten"]
[Result "0-1"]
[ECO "B23"]
[WhiteElo "1842"]
[BlackElo "2118"]
[Annotator "RC"]
[PlyCount "76"]
[EventDate "2024.03.25"]
[EventType "swiss"]
[EventCountry "NOR"]
[SourceTitle "playchess.com"]
[Source "ChessBase"]
[SourceQuality "1"]
[TimeControl "40/6000+30:2400+30"]

1. e4 {[%emt 0:03:35]} c5 {[%emt 0:00:21]} 2. Nc3 {[%emt 0:00:06]} Nc6 {[%emt 0:00:13]} 3. Bb5 {[%emt 0:00:07]} Nd4 {[%emt 0:01:09]} 4. Nf3 {[%emt 0:00:48]} a6 {[%emt 0:01:42]} 5. Bd3 {[%emt 0:00:22]} g6 {[%emt 0:00:53]} 6. Rb1 {[%emt 0:00:12]} Bg7 {[%emt 0:01:36]} 7. b4 {[%emt 0:06:21]} cxb4 {[%emt 0:02:02]} 8. Rxb4 {[%emt 0:00:25]} Nc6 {[%emt 0:00:14]} 9. Rb1 {[%emt 0:03:16]} Nf6 {[%emt 0:01:35]} 10. O-O {[%emt 0:04:57]} O-O {[%emt 0:02:09]} 11. Re1 {[%emt 0:02:53]} d6 {[%emt 0:03:22]} 12. a4 {[%emt 0:08:20]} Rb8 {[%emt 0:17:35]} 13. h3 {[%emt 0:04:33]} Qa5 {[%emt 0:03:04]} 14. Bb2 {[%emt 0:13:26]} Nd7 {[%emt 0:14:07]} 15. Bf1 {[%emt 0:06:25]} Nde5 {[%emt 0:01:28]} 16. Nxe5 {[%emt 0:04:09]} Bxe5 {[%emt 0:01:41]} 17. Nd5 {[%emt 0:05:37]} Bxb2 {[%emt 0:03:00]} 18. Rxb2 {[%emt 0:00:09]} Qxa4 {[%emt 0:14:01]} 19. Nb6 {[%emt 0:00:29]} Qa5 {[%emt 0:00:42]} 20. c3 {[%emt 0:01:37]} Be6 {[%emt 0:03:19]} 21. Qb1 {[%emt 0:01:38]} Qg5 {[%emt 0:00:56]} 22. Re3 {[%emt 0:05:06]} f5 {[%emt 0:04:19]} 23. exf5 {[%emt 0:04:06]} Bxf5 {[%emt 0:00:46]} 24. Qa2+ {[%emt 0:02:23]} Kh8 {[%emt 0:00:24]} 25. Qd5 {[%emt 0:05:51]} Qf6 {[%emt 0:02:15]} 26. d4 {[%emt 0:03:39]} e5 {[%emt 0:01:20]} 27. Rf3 {[%emt 0:05:23]} Qe7 {[%emt 0:08:06]} 28. Bxa6 {[%emt 0:02:01]} exd4 {[%emt 0:07:26]} 29. Re2 {[%emt 0:02:18]} Ne5 {[%emt 0:04:37]} 30. Qxd4 {[%emt 0:02:31]} bxa6 {[%emt 0:01:54]} 31. Rfe3 {[%emt 0:01:44]} Qf6 {[%emt 0:03:38]} 32. Nd5 {[%emt 0:04:12]} Qg7 {[%emt 0:00:16]} 33. g4 {[%emt 0:00:58]} Be6 {[%emt 0:02:45]} 34. f4 {[%emt 0:01:16]} Bxd5 {[%emt 0:00:34]} 35. Qxd5 {[%emt 0:00:54]} Rb5 {[%emt 0:02:10]} 36. Qe6 {[%emt 0:02:41]} Qf7 {[%emt 0:02:08]} 37. Qxd6 {[%emt 0:01:04]} Qxf4 {[%emt 0:00:34]} 38. Qxe5+ {[%emt 0:01:53]} Rxe5 {[%emt 0:00:07]} 0-1

[Event "Fagernes Chess GM-Swiss 2024"]
[Site "Fagernes"]
[Date "2024.03.27"]
[Round "4.41"]
[White "Rounaiv Rana"]
[Black "Rynning, Rune Kleiven"]
[Result "1-0"]
[ECO "E32"]
[WhiteElo "2099"]
[BlackElo "1813"]
[Annotator "NA RC"]
[PlyCount "63"]
[EventDate "2024.03.25"]
[EventType "swiss"]
[EventCountry "NOR"]
[SourceTitle "playchess.com"]
[Source "ChessBase"]
[SourceQuality "1"]
[TimeControl "40/6000+30:2400+30"]

1. d4 {[%emt 0:00:03]} Nf6 {[%emt 0:00:07]} 2. c4 {[%emt 0:00:05]} e6 {[%emt 0:00:08]} 3. Nc3 {[%emt 0:00:05]} Bb4 {[%emt 0:00:06]} 4. Qc2 {[%emt 0:00:06]} O-O {[%emt 0:00:22]} 5. e4 {[%emt 0:00:05]} d5 {[%emt 0:00:07]} 6. e5 {[%emt 0:00:06]} Ne4 {[%emt 0:00:07]} 7. Bd3 {[%emt 0:00:08]} c5 {[%emt 0:00:40]} 8. Nf3 {[%emt 0:00:52]} cxd4 {[%emt 0:00:56]} 9. Nxd4 {[%emt 0:00:15]} Nd7 {[%emt 0:01:37]} 10. Bf4 {[%emt 0:00:38]} Qh4 {[%emt 0:00:13]} 11. g3 {[%emt 0:00:17]} Qh5 {[%emt 0:00:35]} 12. h4 {[%emt 0:08:20]} g5 {[%emt 0:04:09]} 13. Be3 {[%emt 0:29:12]} Nxe5 {[%emt 0:15:09]} 14. Bxe4 {[%emt 0:02:07]} dxe4 {[%emt 0:09:47]} 15. Qxe4 {[%emt 0:00:35]} Bxc3+ {[%emt 0:00:33]} 16. bxc3 {[%emt 0:00:09]} Nxc4 {[%emt 0:09:30]} 17. hxg5 {[%emt 0:41:07]} Qg6 {[%emt 0:00:18]} 18. Nf5 {[%emt 0:01:44]} Qxf5 {[%emt 0:02:06]} 19. Qxc4 {[%emt 0:00:09]} Bd7 {[%emt 0:05:26]} 20. Qf4 {[%emt 0:14:29]} Qxf4 {[%emt 0:03:45]} 21. gxf4 {[%emt 0:00:13]} f6 {[%emt 0:13:23]} 22. Rh6 {[%emt 0:02:26]} fxg5 {[%emt 0:01:51]} 23. fxg5 {[%emt 0:00:09]} Rac8 {[%emt 0:03:06]} 24. Rd1 {[%emt 0:02:54]} Ba4 {[%emt 0:09:52]} 25. Rd4 {[%emt 0:00:39]} Bb5 {[%emt 0:05:57]} 26. a4 {[%emt 0:00:50]} Bc4 {[%emt 0:01:03]} 27. Rd7 {[%emt 0:00:19]} Bd5 {[%emt 0:01:03]} 28. Rhxh7 {[%emt 0:00:43]} Rfd8 {[%emt 0:02:46]} 29. Rdg7+ {[%emt 0:00:12]} Kf8 {[%emt 0:00:11]} 30. Bd4 {[%emt 0:01:02]} e5 {[%emt 0:02:51]} 31. Bxe5 {[%emt 0:00:09]} Bg8 {[%emt 0:02:15]} 32. Rh8 {[%emt 0:00:13]} 1-0

[Event "Fagernes Chess GM-Swiss 2024"]
[Site "Fagernes"]
[Date "2024.03.27"]
[Round "4.42"]
[White "Avetisyan, Ani"]
[Black "Havik, Victor"]
[Result "1-0"]
[ECO "D37"]
[WhiteElo "1840"]
[BlackElo "2078"]
[Annotator "NA RC"]
[PlyCount "63"]
[EventDate "2024.03.25"]
[EventType "swiss"]
[EventCountry "NOR"]
[SourceTitle "playchess.com"]
[Source "ChessBase"]
[SourceQuality "1"]
[TimeControl "40/6000+30:2400+30"]

1. d4 {[%emt 0:00:03]} Nf6 {[%emt 0:00:48]} 2. c4 {[%emt 0:00:07]} e6 {[%emt 0:00:11]} 3. Nf3 {[%emt 0:00:14]} d5 {[%emt 0:00:09]} 4. Nc3 {[%emt 0:00:10]} Nbd7 {[%emt 0:00:44]} 5. Bf4 {[%emt 0:01:26]} dxc4 {[%emt 0:03:43]} 6. e3 {[%emt 0:10:26]} b5 {[%emt 0:02:20]} 7. Nxb5 {[%emt 0:15:39]} Bb4+ {[%emt 0:01:43]} 8. Nc3 {[%emt 0:00:55]} Nd5 {[%emt 0:04:28]} 9. Qc2 {[%emt 0:01:09]} N7b6 {[%emt 0:02:28]} 10. Be2 {[%emt 0:04:00]} Bxc3+ {[%emt 0:08:08]} 11. bxc3 {[%emt 0:00:07]} Nxf4 {[%emt 0:00:09]} 12. exf4 {[%emt 0:00:10]} Bb7 {[%emt 0:01:55]} 13. O-O {[%emt 0:03:07]} O-O {[%emt 0:05:50]} 14. Ne5 {[%emt 0:05:58]} Bd5 {[%emt 0:05:38]} 15. Qd2 {[%emt 0:04:52]} f6 {[%emt 0:04:04]} 16. Ng4 {[%emt 0:04:00]} Qd6 {[%emt 0:01:42]} 17. Ne3 {[%emt 0:07:31]} Rad8 {[%emt 0:14:50]} 18. Rad1 {[%emt 0:03:30]} f5 {[%emt 0:06:19]} 19. Rfe1 {[%emt 0:09:52]} Qa3 {[%emt 0:10:50]} 20. Nxd5 {[%emt 0:04:08]} Rxd5 {[%emt 0:00:36]} 21. Bf3 {[%emt 0:02:56]} Ra5 {[%emt 0:04:26]} 22. Rxe6 {[%emt 0:03:26]} Qxa2 {[%emt 0:00:49]} 23. Qe3 {[%emt 0:00:20]} Qa4 {[%emt 0:03:11]} 24. Re1 {[%emt 0:04:41]} Nd5 {[%emt 0:06:16]} 25. Bxd5 {[%emt 0:03:26]} Rxd5 {[%emt 0:00:05]} 26. Re7 {[%emt 0:00:03]} Qc6 {[%emt 0:01:01]} 27. Qg3 {[%emt 0:01:25]} g6 {[%emt 0:05:11]} 28. Qh4 {[%emt 0:02:09]} h5 {[%emt 0:00:36]} 29. Qg5 {[%emt 0:00:46]} Rf7 {[%emt 0:01:40]} 30. R7e6 {[%emt 0:01:18]} Rd6 {[%emt 0:02:44]} 31. Qxg6+ {[%emt 0:00:39]} Kf8 {[%emt 0:00:14]} 32. Qh6+ {[%emt 0:00:19]} 1-0

[Event "Fagernes Chess GM-Swiss 2024"]
[Site "Fagernes"]
[Date "2024.03.27"]
[Round "4.43"]
[White "Lilliehook, Victor"]
[Black "Rasmussen, Casper"]
[Result "1/2-1/2"]
[ECO "C43"]
[WhiteElo "2060"]
[BlackElo "2244"]
[Annotator "RC"]
[PlyCount "124"]
[EventDate "2024.03.25"]
[EventType "swiss"]
[EventCountry "NOR"]
[SourceTitle "playchess.com"]
[Source "ChessBase"]
[SourceQuality "1"]
[TimeControl "40/6000+30:2400+30"]

1. e4 {[%emt 0:00:03]} e5 {[%emt 0:00:07]} 2. Nf3 {[%emt 0:00:07]} Nf6 {[%emt 0:00:06]} 3. d4 {[%emt 0:00:09]} Nxe4 {[%emt 0:00:08]} 4. dxe5 {[%emt 0:00:06]} d5 {[%emt 0:00:58]} 5. Nbd2 {[%emt 0:00:10]} Nxd2 {[%emt 0:01:17]} 6. Bxd2 {[%emt 0:00:06]} Be7 {[%emt 0:01:03]} 7. Bd3 {[%emt 0:00:14]} c5 {[%emt 0:00:16]} 8. c3 {[%emt 0:00:05]} Nc6 {[%emt 0:00:26]} 9. O-O {[%emt 0:00:53]} Bg4 {[%emt 0:04:07]} 10. Re1 {[%emt 0:01:08]} O-O {[%emt 0:01:27]} 11. h3 {[%emt 0:04:15]} Bh5 {[%emt 0:05:59]} 12. Bf4 {[%emt 0:02:46]} Qd7 {[%emt 0:07:08]} 13. Be2 {[%emt 0:01:58]} Rad8 {[%emt 0:05:39]} 14. Qd2 {[%emt 0:06:02]} f6 {[%emt 0:19:37]} 15. Rad1 {[%emt 0:07:48]} Bf7 {[%emt 0:08:36]} 16. Bd3 {[%emt 0:12:14]} fxe5 {[%emt 0:08:18]} 17. Nxe5 {[%emt 0:01:44]} Nxe5 {[%emt 0:00:19]} 18. Bxe5 {[%emt 0:00:18]} Bh5 {[%emt 0:02:50]} 19. Be2 {[%emt 0:06:28]} Bxe2 {[%emt 0:02:14]} 20. Rxe2 {[%emt 0:01:37]} Bf6 {[%emt 0:02:23]} 21. Bxf6 {[%emt 0:06:38]} Rxf6 {[%emt 0:00:20]} 22. Qg5 {[%emt 0:02:40]} h6 {[%emt 0:01:51]} 23. Qe5 {[%emt 0:03:49]} b6 {[%emt 0:02:40]} 24. Red2 {[%emt 0:11:02]} Rd6 {[%emt 0:00:03]} 25. Rd3 {[%emt 0:02:40]} Qf7 {[%emt 0:02:57]} 26. Rf3 {[%emt 0:05:14]} Qe6 {[%emt 0:01:27]} 27. Qxe6+ {[%emt 0:02:34]} Rxe6 {[%emt 0:00:03]} 28. Rfd3 {[%emt 0:00:10]} Red6 {[%emt 0:00:18]} 29. a4 {[%emt 0:01:48]} Kf7 {[%emt 0:02:36]} 30. f4 {[%emt 0:03:13]} d4 {[%emt 0:12:37]} 31. cxd4 {[%emt 0:10:40]} Rxd4 {[%emt 0:00:01]} 32. Rxd4 {[%emt 0:00:13]} cxd4 {[%emt 0:00:06]} 33. Kf2 {[%emt 0:01:55]} Ke6 {[%emt 0:00:53]} 34. Ke2 {[%emt 0:02:57]} Kd5 {[%emt 0:00:28]} 35. Rd3 {[%emt 0:00:18]} Ke4 {[%emt 0:04:08]} 36. Rg3 {[%emt 0:05:13]} Rd7 {[%emt 0:02:47]} 37. Rg4 {[%emt 0:00:20]} d3+ {[%emt 0:01:53]} 38. Kd2 {[%emt 0:00:08]} Kf5 {[%emt 0:00:51]} 39. Rh4 {[%emt 0:07:23]} Rd4 {[%emt 0:03:01]} 40. Rg4 {[%emt 0:02:25]} g6 {[%emt 0:03:23]} 41. g3 {[%emt 0:10:40]} g5 {[%emt 0:05:15]} 42. b3 {[%emt 0:05:16]} a5 {[%emt 0:01:04]} 43. Kc1 {[%emt 0:02:20]} d2+ {[%emt 0:19:47]} 44. Kd1 {[%emt 0:00:01]} Rd3 {[%emt 0:02:12]} 45. fxg5 {[%emt 0:01:24]} hxg5 {[%emt 0:00:02]} 46. b4 {[%emt 0:02:41]} axb4 {[%emt 0:01:14]} 47. Rxb4 {[%emt 0:01:12]} Rxg3 {[%emt 0:00:03]} 48. Kxd2 {[%emt 0:02:25]} Rxh3 {[%emt 0:00:03]} 49. Ke2 {[%emt 0:02:39]} Rh4 {[%emt 0:04:32]} 50. Rb5+ {[%emt 0:03:53]} Kf4 {[%emt 0:00:33]} 51. Kf2 {[%emt 0:01:24]} Rh2+ {[%emt 0:00:12]} 52. Kg1 {[%emt 0:00:10]} Ra2 {[%emt 0:00:10]} 53. Rxb6 {[%emt 0:00:36]} Kg3 {[%emt 0:00:46]} 54. Rb3+ {[%emt 0:00:17]} Kh4 {[%emt 0:00:02]} 55. Rb4+ {[%emt 0:00:30]} g4 {[%emt 0:00:05]} 56. Rc4 {[%emt 0:02:25]} Kh3 {[%emt 0:01:10]} 57. Rc3+ {[%emt 0:00:23]} g3 {[%emt 0:00:12]} 58. Rc1 {[%emt 0:00:02]} Rxa4 {[%emt 0:01:06]} 59. Rb1 {[%emt 0:00:08]} Ra2 {[%emt 0:00:25]} 60. Rc1 {[%emt 0:00:03]} Rg2+ {[%emt 0:00:07]} 61. Kh1 {[%emt 0:00:01]} Rb2 {[%emt 0:01:03]} 62. Kg1 {[%emt 0:00:07]} Ra2 {[%emt 0:01:34]} 1/2-1/2